bitfinex/quotes_ETHUSD_20220105
["timestamp","ask_amount","ask_price","bid_price","bid_amount"]
[1641344529448,0.0073895,3809.6,3809.3,2.51099208]
[1641344529646,0.0073895,3809.6,3809.3,2.56204546]
[1641344529846,0.00682108,3809.5,3809.4,1.4602499]
[1641344530645,0.00682108,3809.5,3809.4,1.51130328]
[1641344531653,0.00682108,3809.5,3809.4,1.56007354]
[1641344531853,0.00682108,3809.5,3809.4,1.56235666]
[1641344532052,0.01707779,3809.5,3809.4,1.56235666]
[1641344532652,0.01707779,3809.5,3809.4,1.61112692]
[1641344532951,0.01707779,3809.5,3809.4,1.61341004]
[1641344533593,0.05762424,3809.5,3809.4,1.61341004]
[1641344533793,0.05762424,3809.5,3809.4,1.66446342]
[1641344534797,0.05762424,3809.5,3809.4,1.7155168]
[1641344535596,0.71423424,3809.5,3809.4,1.7155168]
[1641344535796,0.71423424,3809.5,3809.4,0.30403716]
[1641344535797,1.01423424,3809.5,3809.4,0.30403716]
[1641344535997,1.31423424,3809.5,3809.4,0.30403716]
[1641344536800,1.31423424,3809.5,3809.4,0.35280742]
[1641344537036,1.31423424,3809.5,3809.4,0.35509054]
[1641344538137,1.31423424,3809.5,3809.4,0.35737366]
[1641344538637,0.65762424,3809.5,3809.4,0.35737366]
[1641344539045,0.35762424,3809.5,3809.4,0.35737366]
[1641344539243,0.35762424,3809.5,3809.4,0.3086034]
[1641344539444,0.05762424,3809.5,3809.4,0.3086034]
[1641344539743,0.05762424,3809.5,3809.4,2.5314769]
[1641344539945,2.424e-05,3809.5,3809.4,7.0814769]
[1641344540143,2.424e-05,3809.5,3809.4,7.08376002]
[1641344540342,2.424e-05,3809.5,3809.4,7.13253028]
[1641344541191,2.424e-05,3809.5,3809.4,7.1348134]
[1641344541388,2.424e-05,3809.5,3809.4,2.63358366]
[1641344543190,2.424e-05,3809.5,3809.4,2.63586678]
[1641344543390,2.424e-05,3809.5,3809.4,0.41299328]
[1641344544192,2.424e-05,3809.5,3809.4,0.4152764]
[1641344544442,2.424e-05,3809.5,3809.4,0.46404666]
[1641344545246,2.424e-05,3809.5,3809.4,2.74872813]
[1641344545441,2.424e-05,3809.5,3809.4,2.79749839]
[1641344545641,0.03246154,3809.5,3809.4,2.79749839]
[1641344546239,0.03246154,3809.5,3809.4,2.79978151]
[1641344546440,0.03246154,3809.5,3809.4,2.84855177]
[1641344547039,0.03246154,3809.5,3809.4,3.64035177]
[1641344547239,0.03246154,3809.5,3809.4,3.64263489]
[1641344548584,0.03246154,3809.5,3809.4,3.69140515]
[1641344549586,0.03246154,3809.5,3809.4,3.74017541]
[1641344550391,0.03246154,3809.5,3809.4,3.74245853]
[1641344550585,0.03246154,3809.5,3809.4,3.74017541]
[1641344551593,0.03017842,3809.5,3809.4,3.78894567]
[1641344551791,0.03017842,3809.5,3809.4,3.74017541]
[1641344552635,0.03017842,3809.5,3809.4,3.78894567]
[1641344553634,0.03017842,3809.5,3809.4,4.78894567]
[1641344553835,0.03017842,3809.5,3809.4,3.78894567]
[1641344554439,0.03017842,3809.5,3809.4,1.50654732]
[1641344554639,0.03017842,3809.5,3809.4,0.71474732]
[1641344554841,0.03017842,3809.5,3809.4,0.76351758]
[1641344555896,0.03017842,3809.5,3809.4,3.05047778]
[1641344556096,0.03017842,3809.5,3809.4,1.76351758]
[1641344556497,0.03017842,3809.5,3809.4,0.76351758]
[1641344556701,0.03017842,3809.5,3809.4,1.76351758]
[1641344556899,0.03017842,3809.5,3809.4,0.76351758]
[1641344557400,0.03017842,3809.5,3809.4,0.71474732]
[1641344557599,0.03015418,3809.5,3809.4,0.71474732]
[1641344558203,1.23739294,3810.2,3809.4,0.71474732]
[1641344558399,1.23739294,3810.2,3809.7,0.65641]
[1641344558400,1.83739294,3810.2,3809.7,0.65641]
[1641344558601,0.00341054,3810.1,3809.7,0.65641]
[1641344558999,0.00284212,3810.0,3809.7,0.65641]
[1641344559449,0.00227369,3809.9,3809.7,0.65641]
[1641344559652,0.00227369,3809.9,3809.6,1.31281]
[1641344559852,0.00170527,3809.8,3809.6,1.31281]
[1641344560250,0.00113685,3809.7,3809.6,1.31281]
[1641344561255,0.60763685,3809.9,3809.6,1.31281]
[1641344561459,0.90763685,3809.9,3809.6,1.31281]
[1641344561654,1.20763685,3809.9,3809.6,1.31281]
[1641344563058,0.0306962,3809.8,3809.6,1.31281]
[1641344563886,0.0306962,3809.8,3809.4,0.71474732]
[1641344564087,0.65657,3809.6,3809.4,0.71474732]
[1641344564285,0.65657,3809.6,3809.5,0.00113685]
[1641344564487,2.13316481,3809.6,3809.5,0.00113685]
[1641344564988,2.43316481,3809.6,3809.5,0.00113685]
[1641344566492,3.43316481,3809.6,3809.5,0.00113685]
[1641344566692,3.81516481,3809.6,3809.5,0.00113685]
[1641344568763,3.84586237,3809.6,3809.5,0.00113685]
[1641344570365,2.84586237,3809.6,3809.5,0.00113685]
[1641344570565,3.84586237,3809.6,3809.5,0.00113685]
[1641344571798,5.15,3809.5,3809.4,0.7124642]
[1641344571999,6.532,3809.5,3809.4,0.7124642]
[1641344572198,1.682,3809.5,3809.4,0.7124642]
[1641344572400,2.85,3809.4,3808.4,1.22980421]
[1641344572599,0.65677,3808.9,3808.4,1.22980421]
[1641344572899,0.65677,3808.9,3808.5,0.00568423]
[1641344573100,0.95677,3808.9,3808.5,0.00568423]
[1641344573302,0.3,3808.9,3808.5,0.00568423]
[1641344573499,1.07007043,3808.6,3808.5,0.00568423]
[1641344573902,1.67007043,3808.6,3808.5,0.00568423]
[1641344574952,0.63070619,3808.6,3808.5,0.00568423]
[1641344575152,0.33070619,3808.6,3808.5,0.00568423]
[1641344575553,0.03070619,3808.6,3808.5,0.00568423]
[1641344575751,0.33070619,3808.6,3808.5,0.00568423]
[1641344576152,0.03070619,3808.6,3808.5,0.00568423]
[1641344576353,1.38609412,3808.6,3808.5,0.00568423]
[1641344579801,1.28609412,3808.6,3808.5,0.00568423]
[1641344580602,1.31679984,3808.6,3808.5,0.00568423]
[1641344583565,0.03070572,3808.6,3808.5,0.00568423]
[1641344588209,0.63736572,3808.8,3808.5,0.00568423]
[1641344588409,0.93736572,3808.8,3808.5,0.00568423]
[1641344588807,1.59412572,3808.8,3808.5,0.00568423]
[1641344589009,0.3,3808.7,3808.5,0.00568423]
[1641344590047,1.96812234,3808.6,3808.5,0.00568423]
[1641344590248,1.96812234,3808.6,3808.4,1.88655421]
[1641344590249,1.96812234,3808.6,3808.4,1.84223844]
[1641344590449,1.25672,3808.6,3808.4,1.84223844]
[1641344591650,2.61587245,3808.6,3808.4,1.84223844]
[1641344592951,2.64657861,3808.6,3808.4,1.84223844]
[1641344593606,1.28742616,3808.6,3808.4,1.84223844]
[1641344594809,1.28742616,3808.6,3808.4,1.22980421]
[1641344598654,0.68742616,3808.6,3808.4,1.22980421]
[1641344599961,0.98742616,3808.6,3808.4,1.22980421]
[1641344604012,0.01025923,3808.5,3808.4,1.22980421]
[1641344606762,0.01025923,3808.5,3808.3,0.65678]
[1641344607166,0.66700923,3808.5,3808.3,0.65678]
[1641344607567,0.96700923,3808.5,3808.3,0.65678]
[1641344614348,0.65679,3808.3,3808.1,1.22660843]
[1641344614550,1.75207616,3808.3,3808.1,1.22660843]
[1641344614750,2.05207616,3808.3,3808.2,0.00170528]
[1641344617008,0.95679,3808.3,3808.2,0.00170528]
[1641344617811,0.3,3808.3,3808.2,0.00170528]
[1641344618110,1.26695923,3808.5,3808.2,0.00170528]
[1641344619849,0.65674,3808.4,3808.2,0.00170528]
[1641344622058,1.3135399,3808.4,3808.2,0.00170528]
[1641344622460,1.9135399,3808.4,3808.2,0.00170528]
[1641344625829,1.94424783,3808.4,3808.2,0.00170528]
[1641344627456,1.28744793,3808.4,3808.2,0.00170528]
[1641344628458,1.18744793,3808.4,3808.2,0.00170528]
[1641344628862,1.84424043,3808.4,3808.2,0.00170528]
[1641344629060,2.582,3808.3,3808.2,0.00170528]
[1641344629460,3.582,3808.3,3808.2,0.00170528]
[1641344629960,3.59225989,3808.3,3808.2,0.00170528]
[1641344630261,1.39225989,3808.3,3808.2,0.00170528]
[1641344633310,1.39225989,3808.3,3806.8,5.11523]
[1641344633311,0.65698,3807.6,3806.8,5.11523]
[1641344633513,0.65698,3807.6,3806.5,6.14]
[1641344633514,0.382,3807.5,3806.5,6.14]
[1641344633816,0.78788,3807.1,3806.9,0.0073895]
[1641344634013,0.682,3807.0,3806.9,0.0073895]
[1641344634312,2.57960208,3807.0,3806.9,0.0073895]
[1641344634553,3.57960208,3807.0,3806.9,0.0073895]
[1641344634955,0.65709,3806.9,3806.7,0.00852635]
[1641344635158,0.382,3806.8,3806.7,0.00852635]
[1641344635557,0.682,3806.8,3806.7,0.00852635]
[1641344636559,0.3,3806.8,3806.7,0.00852635]
[1641344636958,0.0102634,3807.0,3806.7,0.00852635]
[1641344637158,0.0102634,3807.0,3806.8,1.31389]
[1641344640312,0.6672734,3807.0,3806.8,1.31389]
[1641344640513,0.9672734,3807.0,3806.8,1.31389]
[1641344641010,1.2672734,3807.0,3806.8,1.31389]
[1641344641812,2.36841537,3807.0,3806.8,1.31389]
[1641344643967,0.03071928,3806.9,3806.8,1.31389]
[1641344644366,0.03071928,3806.9,3806.8,1.32184792]
[1641344644666,0.03071928,3806.9,3806.8,0.00795792]
[1641344645067,0.03071928,3806.9,3806.7,0.00852635]
[1641344645068,0.65704,3806.8,3806.7,0.00852635]
[1641344645468,0.95704,3806.8,3806.7,0.00852635]
[1641344649317,0.3,3806.8,3806.7,0.00852635]
[1641344649564,0.33071928,3806.9,3806.7,0.00852635]
[1641344650165,0.03071928,3806.9,3806.7,2.31385966]
[1641344650364,0.0102634,3807.0,3806.7,2.31385966]
[1641344650365,8.268e-05,3807.0,3806.7,2.31385966]
[1641344650565,8.268e-05,3807.0,3806.9,5.21257895]
[1641344650770,2.04307703,3808.0,3807.0,5.2]
[1641344650968,2.04307703,3808.0,3807.1,2.390473]
[1641344651169,2.04307703,3808.0,3807.1,18.81672565]
[1641344651369,2.04307703,3808.0,3807.4,0.6567554]
[1641344651571,2.04307703,3808.0,3807.6,0.65672]
[1641344651772,0.78777703,3808.0,3807.8,5.2]
[1641344651974,2.0,3808.3,3807.9,5.21282016]
[1641344652172,2.0,3808.3,3807.9,5.21452543]
[1641344652370,2.0,3808.3,3808.0,2.18947614]
[1641344652571,2.0,3808.3,3808.0,0.00113684]
[1641344652970,2.0,3808.3,3808.0,0.65775684]
[1641344654007,0.6,3808.2,3808.0,0.65775684]
[1641344655210,0.3,3808.2,3808.0,0.65775684]
[1641344655612,1.86634654,3808.4,3808.0,0.65775684]
[1641344656611,0.03070925,3808.1,3808.0,0.65775684]
[1641344657071,0.03070925,3808.1,3808.0,0.00113684]
[1641344658871,0.03070925,3808.1,3807.9,0.00170527]
[1641344659572,0.01397841,3808.9,3808.0,15.42]
[1641344659777,0.01397841,3808.9,3808.3,1.3132]
[1641344659975,0.00341055,3808.8,3808.4,2.432668]
[1641344660373,0.00284212,3808.7,3808.4,2.432668]
[1641344660810,1.17456423,3809.4,3808.4,2.432668]
[1641344660811,0.0022737,3808.6,3808.4,2.432668]
[1641344661008,0.01253277,3808.6,3808.4,2.432668]
[1641344661210,0.00170528,3808.5,3808.4,2.432668]
[1641344661610,0.00170528,3808.5,3808.3,1.3132]
[1641344661912,0.00113685,3808.4,3808.3,1.3132]
[1641344662314,0.00170528,3808.4,3808.3,1.3132]
[1641344664656,0.00170528,3808.4,3808.3,8.00047577]
[1641344664856,0.00170528,3808.4,3808.3,3.65047577]
[1641344665053,0.00170528,3808.4,3808.3,1.3132]
[1641344665254,0.00170528,3808.4,3808.3,5.4132]
[1641344665453,0.00170528,3808.4,3808.3,7.58214943]
[1641344665654,0.00170528,3808.4,3808.3,7.59548742]
[1641344666460,0.01196489,3808.4,3808.3,7.59548742]
[1641344666963,0.01196489,3808.4,3808.3,23.01548742]
[1641344667364,0.01196489,3808.4,3808.3,8.59548742]
[1641344667561,0.01196489,3808.4,3808.3,3.49548742]
[1641344670020,0.01196489,3808.4,3808.3,20.90682863]
[1641344670021,6.489e-05,3808.4,3808.3,20.90682863]
[1641344670218,6.489e-05,3808.4,3808.3,21.28996548]
[1641344670417,6.489e-05,3808.4,3808.3,21.34806548]
[1641344670616,4.49042261,3810.8,3808.8,0.65641]
[1641344670818,4.49042261,3810.8,3809.0,15.42]
[1641344671117,4.49042261,3810.8,3809.3,15.42]
[1641344671318,4.49042261,3810.8,3809.5,0.6563586]
[1641344671517,0.00852635,3810.7,3809.5,0.6563586]
[1641344671716,0.00852635,3810.7,3809.9,0.65636]
[1641344671952,0.66437793,3810.6,3809.9,0.65636]
[1641344672153,1.19945648,3810.1,3809.9,0.65636]
[1641344672555,1.19945648,3810.1,3809.4,1.1813]
[1641344672556,0.00454739,3810.0,3809.4,1.1813]
[1641344672754,0.00454739,3810.0,3809.3,1.96908]
[1641344672952,0.66051896,3809.9,3809.3,1.96908]
[1641344673452,0.00341054,3809.8,3809.3,1.96908]
[1641344673653,0.00341054,3809.8,3809.6,0.65652]
[1641344673852,0.00284212,3809.7,3809.6,0.65652]
[1641344674854,0.00284212,3809.7,3809.6,8.21985714]
[1641344675057,0.00284212,3809.7,3809.6,21.27652]
[1641344675255,0.00284212,3809.7,3809.6,22.27652]
[1641344675456,0.01397839,3810.1,3809.7,5.2]
[1641344675730,6.14,3811.2,3810.1,0.6562269]
[1641344676126,0.00568423,3810.7,3810.1,0.6562269]
[1641344676524,0.00511581,3810.6,3810.2,15.42]
[1641344676724,0.00511581,3810.6,3810.3,1.31243]
[1641344676925,0.00454738,3810.5,3810.4,1.31043373]
[1641344677124,0.00454738,3810.5,3810.4,3.61125045]
[1641344677324,0.00454738,3810.5,3810.4,1.31043373]
[1641344678525,0.00454738,3810.5,3810.3,1.31243]
[1641344678926,0.00397896,3810.4,3810.3,1.31243]
[1641344681557,0.00397896,3810.4,3810.3,2.69733167]
[1641344683207,0.00397896,3810.4,3810.3,1.31243]
[1641344683608,0.00397896,3810.4,3810.0,0.65644]
[1641344684008,0.00341054,3810.3,3810.0,0.65644]
[1641344684209,1.07820839,3810.1,3810.0,0.65644]
[1641344684609,1.08048208,3810.1,3810.0,0.65644]
[1641344686116,4.24662707,3810.1,3809.7,1.31284]
[1641344686315,4.24662707,3810.1,3809.5,1.31297]
[1641344686316,0.65657,3810.0,3809.4,1.165]
[1641344686515,2.99583919,3809.9,3809.1,0.0584]
[1641344686714,2.99583919,3809.9,3809.5,0.00113685]
[1641344686715,2.99697603,3809.9,3809.5,0.00113685]
[1641344686969,3.29697603,3809.9,3809.2,1.21126152]
[1641344687254,3.29697603,3809.9,3809.3,0.6588237]
[1641344687255,0.65659,3809.8,3809.3,0.6588237]
[1641344687455,0.3,3809.5,3809.3,0.0022737]
[1641344687659,0.3,3809.5,3809.4,0.00170527]
[1641344687859,0.3,3809.5,3809.3,0.0022737]
[1641344688062,0.95654,3809.8,3809.3,0.0022737]
[1641344688460,1.25458493,3809.6,3809.3,0.0022737]
[1641344688661,2.21120493,3809.6,3809.3,0.0022737]
[1641344688861,2.51120493,3809.6,3809.3,0.0022737]
[1641344689061,2.51120493,3809.6,3808.9,0.00454739]
[1641344689860,2.51120493,3809.6,3808.7,0.00568424]
[1641344690809,2.51120493,3809.6,3809.1,0.6566]
[1641344691209,1.85458493,3809.6,3809.2,0.00284212]
[1641344691610,0.6,3809.6,3809.2,0.00284212]
[1641344692009,0.68313684,3809.9,3809.2,0.00284212]
[1641344692214,0.68313684,3809.9,3809.5,0.65648]
[1641344693512,1.33964684,3809.9,3809.5,0.65648]
[1641344693912,0.30113684,3809.9,3809.5,0.65648]
[1641344694114,0.00113684,3809.9,3809.5,0.65648]
[1641344696456,0.3,3809.7,3809.5,0.65648]
[1641344696856,0.30113684,3809.9,3809.5,0.65648]
[1641344697057,0.00113684,3809.9,3809.5,0.65648]
[1641344697559,1.27143626,3809.8,3809.5,0.65648]
[1641344697758,1.57143626,3809.8,3809.5,0.65648]
[1641344697959,1.87143626,3809.8,3809.5,0.65648]
[1641344700810,0.65655,3809.7,3809.5,0.65648]
[1641344701212,0.65655,3809.7,3809.2,0.00284212]
[1641344701409,0.65655,3809.7,3809.2,0.65943212]
[1641344701608,1.31312,3809.7,3809.2,0.65943212]
[1641344701809,0.65658,3809.5,3809.3,0.0022737]
[1641344702488,0.95658,3809.5,3809.1,0.65657]
[1641344702889,1.25658,3809.5,3809.2,0.00284212]
[1641344703089,1.23438575,3809.4,3809.2,0.00284212]
[1641344709217,0.01025703,3809.3,3809.2,0.00284212]
[1641344710457,2.89784168,3809.3,3809.2,0.00284212]
[1641344710658,4.57984168,3809.3,3809.2,0.00284212]
[1641344710860,4.87984168,3809.3,3808.6,0.00625266]
[1641344711060,0.65676,3809.0,3808.6,0.00625266]
[1641344711262,3.13627391,3808.9,3808.3,0.00795793]
[1641344711660,0.65676,3808.7,3808.3,0.66471793]
[1641344711867,2.38833596,3808.6,3808.3,0.65676]
[1641344712062,2.68833596,3808.6,3808.4,0.00738951]
[1641344712662,2.31804435,3808.5,3808.4,0.00738951]
[1641344713061,2.61804435,3808.5,3808.1,0.00909478]
[1641344713312,0.65679,3808.4,3808.1,0.00909478]
[1641344713510,0.95679,3808.4,3807.8,0.01080005]
[1641344713913,1.18982191,3808.1,3807.8,0.01080005]
[1641344714111,1.48982191,3808.1,3807.8,1.32436005]
[1641344714314,1.78982191,3808.1,3807.8,1.32436005]
[1641344714518,1.78982191,3808.1,3807.9,0.01023163]
[1641344714720,0.01026067,3808.0,3807.9,0.01023163]
[1641344715320,0.01026067,3808.0,3807.2,4.9647]
[1641344715321,1.39226067,3808.0,3807.8,0.01080005]
[1641344715516,1.39226067,3808.0,3807.3,0.01364217]
[1641344715717,1.39226067,3808.0,3807.5,0.01250532]
[1641344716017,0.9569541,3807.7,3806.9,0.01591586]
[1641344716218,0.65697,3807.3,3806.9,1.32977586]
[1641344716416,1.682,3807.7,3806.9,1.32977586]
[1641344716417,0.382,3807.2,3806.9,0.01591586]
[1641344716618,0.382,3807.2,3806.8,6.14]
[1641344716619,0.382,3807.2,3807.0,0.01534744]
[1641344716818,0.382,3807.2,3806.9,0.01591586]
[1641344717063,2.60592479,3807.1,3806.9,0.01591586]
[1641344717260,0.65704,3807.0,3806.9,0.01591586]
[1641344717460,3.04847946,3807.0,3806.9,0.01591586]
[1641344717660,3.34847946,3807.0,3806.9,0.01591586]
[1641344718064,5.31837946,3807.0,3806.9,0.01591586]
[1641344718264,5.50497946,3807.0,3806.9,0.01591586]
[1641344718664,5.80497946,3807.0,3806.9,0.01591586]
[1641344719064,6.18697946,3807.0,3806.9,0.01591586]
[1641344719466,6.00037946,3807.0,3806.9,0.01591586]
[1641344720468,6.01064282,3807.0,3806.9,0.01591586]
[1641344720720,0.3,3806.9,3806.2,0.01989482]
[1641344720908,0.6571473,3806.6,3806.1,0.02046325]
[1641344721109,3.72852579,3806.6,3806.3,0.0193264]
[1641344721309,3.72852579,3806.6,3806.1,0.02046325]
[1641344721310,0.3,3806.5,3806.1,0.02046325]
[1641344721508,2.62957984,3806.4,3806.1,0.02046325]
[1641344721909,3.28671984,3806.4,3806.1,0.02046325]
[1641344722109,0.3,3806.3,3806.1,0.02046325]
[1641344725876,0.01026538,3806.2,3806.1,0.02046325]
[1641344728209,0.01026538,3806.2,3805.9,0.02160009]
[1641344728406,0.01026538,3806.2,3806.0,0.65711]
[1641344728807,0.01026538,3806.2,3806.1,0.02046325]
[1641344729409,0.01026538,3806.2,3806.1,1.21257009]
[1641344740877,6.538e-05,3806.2,3806.1,6.42545321]
[1641344741078,6.538e-05,3806.2,3806.1,21.65334637]
[1641344741478,0.01366734,3807.5,3806.8,0.65683]
[1641344741677,0.01366734,3807.5,3806.9,15.42]
[1641344741876,0.01366734,3807.5,3806.9,0.01591586]
[1641344742077,0.01366734,3807.5,3807.0,0.01534744]
[1641344742278,1.08262448,3807.7,3807.4,1.17759271]
[1641344742677,1.08262448,3807.7,3807.5,0.01250532]
[1641344743312,1.38262448,3807.7,3807.5,0.01250532]
[1641344743512,0.6,3807.7,3807.5,0.01250532]
[1641344743911,0.95681,3808.0,3807.5,0.01250532]
[1641344744112,1.25681,3808.0,3807.5,0.01250532]
[1641344744711,1.25681,3808.0,3807.3,1.31361]
[1641344744712,0.65684,3807.8,3807.6,0.65683]
[1641344744912,0.95684,3807.8,3807.6,0.65683]
[1641344745114,0.95684,3807.8,3807.7,0.01136847]
[1641344746518,0.382,3808.8,3807.7,2.47473555]
[1641344746717,7.4184,3809.3,3807.8,15.69639994]
[1641344746970,0.65666,3809.1,3808.0,0.65663]
[1641344747168,0.65666,3809.1,3808.1,2.29415822]
[1641344747368,0.65666,3809.1,3808.1,2.303253]
[1641344747569,0.65666,3809.1,3808.2,0.00852636]
[1641344748068,1.31328,3809.1,3808.2,0.00852636]
[1641344748469,1.31328,3809.1,3808.5,0.65663]
[1641344748470,1.34709427,3808.9,3808.5,0.65663]
[1641344748670,2.00377427,3808.9,3808.5,0.65663]
[1641344748870,2.00377427,3808.9,3808.6,0.00625266]
[1641344749070,3.26045427,3808.9,3808.6,0.00625266]
[1641344750070,3.26045427,3808.9,3808.3,0.65677]
[1641344750071,3.26045427,3808.9,3808.4,0.00738951]
[1641344750270,0.65679,3808.6,3808.4,0.00738951]
[1641344750471,0.95679,3808.6,3808.4,0.00738951]
[1641344750921,0.95679,3808.6,3808.3,0.00795793]
[1641344750922,0.65679,3808.6,3808.3,0.00795793]
[1641344751117,0.95679,3808.6,3808.3,0.00795793]
[1641344751519,1.31361,3808.5,3808.3,0.00795793]
[1641344753520,0.95679,3808.6,3808.3,0.00795793]
[1641344755966,0.65679,3808.6,3808.3,0.00795793]
[1641344756171,0.95679,3808.6,3808.3,0.00795793]
[1641344757168,1.31362,3808.5,3808.3,0.00795793]
[1641344759818,0.65679,3808.5,3808.3,0.00795793]
[1641344760219,0.65679,3808.5,3808.4,0.00988585]
[1641344760617,0.65679,3808.5,3808.4,0.01727536]
[1641344760818,0.3,3808.6,3808.4,0.01727536]
[1641344761224,0.65664,3809.1,3808.5,0.00682108]
[1641344761422,1.3133,3809.2,3808.5,0.00682108]
[1641344761619,0.382,3809.4,3808.5,0.00682108]
[1641344762298,1.41234157,3809.0,3808.5,0.00682108]
[1641344762996,2.01234157,3809.0,3808.5,0.00682108]
[1641344763195,3.01234157,3809.0,3808.5,0.00682108]
[1641344763596,1.0,3808.9,3808.5,0.00682108]
[1641344763795,1.95672,3808.9,3808.5,0.00682108]
[1641344764007,0.3,3808.8,3808.5,0.00682108]
[1641344764297,1.99552,3808.8,3808.5,0.00682108]
[1641344764697,2.99552,3808.8,3808.5,0.00682108]
[1641344765729,4.30915,3808.8,3808.5,0.00682108]
[1641344765924,0.3,3808.7,3808.5,0.00682108]
[1641344766123,3.382,3808.6,3808.5,0.00682108]
[1641344766325,0.382,3808.6,3808.5,0.00682108]
[1641344766535,1.382,3808.6,3808.5,0.00682108]
[1641344766728,0.382,3808.6,3808.5,0.00682108]
[1641344768334,1.03875,3808.6,3808.5,0.00682108]
[1641344769573,3.54627492,3808.5,3808.4,0.00988585]
[1641344769969,3.84627492,3808.5,3808.4,0.00988585]
[1641344770169,3.84627492,3808.5,3807.8,2.88256549]
[1641344770368,0.65676,3808.4,3807.6,2.4648505]
[1641344770568,0.65678,3808.1,3807.9,0.00341055]
[1641344772275,0.01026051,3808.0,3807.9,0.00341055]
[1641344772675,0.01026051,3808.0,3807.8,0.00397897]
[1641344774716,0.01026051,3808.0,3807.7,17.62448216]
[1641344774916,0.01026051,3808.0,3807.8,1.00397897]
[1641344775114,0.01026051,3808.0,3807.9,7.45736336]
[1641344775519,0.01026051,3808.0,3807.9,8.45736336]
[1641344775920,0.01026051,3808.0,3807.9,3.30736336]
[1641344776118,0.01026051,3808.0,3807.9,2.30736336]
[1641344776318,0.01026051,3808.0,3807.8,2.18895104]
[1641344776519,0.01026051,3808.0,3807.8,18.58696191]
[1641344776718,0.01026051,3808.0,3807.9,22.72928535]
[1641344776985,0.01026051,3808.0,3807.9,7.30928535]
[1641344777174,0.01026051,3808.0,3807.9,8.30928535]
[1641344777577,0.01026051,3808.0,3807.9,23.72928535]
[1641344777775,0.01026051,3808.0,3807.9,17.57928535]
[1641344778477,0.01026051,3808.0,3807.9,15.42]
[1641344780080,0.01026051,3808.0,3807.8,0.00397897]
[1641344780281,0.01026051,3808.0,3807.9,5.15961728]
[1641344780481,0.01026051,3808.0,3807.9,7.49983044]
[1641344781223,0.01026051,3808.0,3807.9,23.91983044]
[1641344782824,0.01026051,3808.0,3807.9,0.00961728]
[1641344784464,0.01026051,3808.0,3807.9,2.95961728]
[1641344785563,0.01026051,3808.0,3807.9,3.95961728]
[1641344786367,0.01026051,3808.0,3807.9,2.95961728]
[1641344787667,0.01026051,3808.0,3807.9,0.00961728]
[1641344791222,0.01026051,3808.0,3807.9,3.35961728]
[1641344792467,0.01026051,3808.0,3807.9,0.00961728]
[1641344794169,0.01026051,3808.0,3807.9,2.35961728]
[1641344794569,0.01026051,3808.0,3807.9,4.58019495]
[1641344795374,0.01026051,3808.0,3807.9,2.23019495]
[1641344798023,0.01026051,3808.0,3807.9,3.23019495]
[1641344798224,0.01026051,3808.0,3807.9,2.23019495]
[1641344799764,0.01026051,3808.0,3807.9,2.88679495]
[1641344799968,0.01026051,3808.0,3807.9,18.30679495]
[1641344800171,0.01026051,3808.0,3807.9,19.30679495]
[1641344805026,0.01026051,3808.0,3807.9,3.23019495]
[1641344805426,0.01026051,3808.0,3807.9,2.23019495]
[1641344805626,0.01026051,3808.0,3807.9,17.65019495]
[1641344806127,0.01026051,3808.0,3807.9,15.42961728]
[1641344807269,0.01026051,3808.0,3807.9,16.42961728]
[1641344809274,0.01026051,3808.0,3807.9,0.00961728]
[1641344811223,0.01026051,3808.0,3807.9,15.42961728]
[1641344812426,0.01026051,3808.0,3807.9,0.00961728]
[1641344814972,0.01026051,3808.0,3807.9,19.87961728]
[1641344815174,0.01026051,3808.0,3807.9,20.87961728]
[1641344815675,0.01026051,3808.0,3807.9,16.42961728]
[1641344817077,0.01026051,3808.0,3807.9,1.00961728]
[1641344817677,0.01026051,3808.0,3807.9,16.42961728]
[1641344821126,0.01026051,3808.0,3807.9,1.00961728]
[1641344821522,0.01026051,3808.0,3807.9,0.00961728]
[1641344828523,0.39226051,3808.0,3807.9,0.00961728]
[1641344828723,0.69226051,3808.0,3807.9,0.00961728]
[1641344830975,3.02765278,3808.0,3807.9,0.00961728]
[1641344835235,2.72765278,3808.0,3807.9,0.00961728]
[1641344836236,0.39226051,3808.0,3807.9,0.00961728]
[1641344836637,0.58494479,3808.0,3807.9,0.00961728]
[1641344836837,2.87842638,3808.0,3807.9,0.00961728]
[1641344839184,2.88868699,3808.0,3807.9,0.00961728]
[1641344842327,3.88868699,3808.0,3807.9,0.00961728]
[1641344842826,5.15,3807.9,3806.6,6.14]
[1641344843027,0.95702,3807.0,3806.6,6.14]
[1641344843226,0.3,3807.0,3806.7,0.01023163]
[1641344843426,1.61404,3807.1,3806.7,0.01023163]
[1641344843427,1.91404,3807.1,3806.7,0.01023163]
[1641344843628,0.3,3807.1,3806.7,0.01023163]
[1641344843829,1.97106,3807.6,3806.7,0.01023163]
[1641344844029,0.3,3807.5,3806.7,0.01023163]
[1641344844229,0.4396,3807.9,3806.7,1.01023163]
[1641344844490,0.4396,3807.9,3806.7,0.01023163]
[1641344844673,0.0102629,3807.4,3806.8,0.0096632]
[1641344844875,0.0102629,3807.4,3806.9,0.656831]
[1641344845073,0.0102629,3807.4,3807.0,15.42]
[1641344845274,0.0102629,3807.4,3807.0,15.42852636]
[1641344845473,0.0102629,3807.4,3807.2,15.42]
[1641344845674,0.0102629,3807.4,3807.3,6.15]
[1641344845879,0.0102629,3807.4,3807.3,6.15682109]
[1641344846680,0.0102629,3807.4,3807.3,3.35682109]
[1641344847082,0.0102629,3807.4,3807.3,2.35682109]
[1641344848927,0.0102629,3807.4,3807.3,3.35682109]
[1641344849128,0.0102629,3807.4,3807.3,18.77682109]
[1641344849528,0.0102629,3807.4,3807.3,3.35682109]
[1641344851532,0.0102629,3807.4,3807.3,2.35682109]
[1641344851733,0.0102629,3807.4,3807.3,0.00682109]
[1641344852173,0.0102629,3807.4,3807.1,0.00795793]
[1641344852574,0.0102629,3807.4,3807.1,0.66465793]
[1641344852875,0.0102629,3807.4,3807.3,15.42]
[1641344853075,6.29e-05,3807.4,3807.3,17.21853266]
[1641344853274,6.29e-05,3807.4,3807.3,18.18195375]
[1641344853473,6.29e-05,3807.4,3807.3,18.56395375]
[1641344853678,6.29e-05,3807.4,3807.3,20.96395375]
[1641344853877,1.23578762,3809.7,3808.0,1.31296]
[1641344854081,1.23578762,3809.7,3808.9,0.6564775]
[1641344854277,0.00625265,3809.6,3808.9,0.6564775]
[1641344854680,0.00568423,3809.5,3808.9,1.80669928]
[1641344854882,0.00568423,3809.5,3808.9,0.6564775]
[1641344855080,0.00511581,3809.4,3808.6,16.42]
[1641344855281,0.00511581,3809.4,3808.6,17.0765116]
[1641344855481,0.00454738,3809.3,3808.6,17.0765116]
[1641344855936,0.00397896,3809.2,3808.7,2.15537594]